[Event "Early-Titled-Tuesday-Blitz-February-13-2024"]
[Site "Chess.com"]
[Date "2024.02.13"]
[Round "5"]
[White "edgarhay012"]
[Black "DanielDardha2005"]
[Result "0-1"]
[WhiteElo "2626"]
[BlackElo "2914"]
[TimeControl "180+1"]
[EndTime "9:01:48 PST"]
[Termination "DanielDardha2005 won by resignation"]

1. e4 {[%clk 0:03:00.9]} 1... e6 {[%clk 0:02:57.7]} 2. d4 {[%clk 0:03:00.8]}
2... d5 {[%clk 0:02:58]} 3. Nc3 {[%clk 0:03:01.4]} 3... a6 {[%clk 0:02:55.7]} 4.
Nf3 {[%clk 0:02:56.6]} 4... Nf6 {[%clk 0:02:55.5]} 5. Bg5 {[%clk 0:02:49]} 5...
dxe4 {[%clk 0:02:48.1]} 6. Nxe4 {[%clk 0:02:47]} 6... Be7 {[%clk 0:02:48.1]} 7.
Bxf6 {[%clk 0:02:44.4]} 7... Bxf6 {[%clk 0:02:46.4]} 8. Bd3 {[%clk 0:02:44.3]}
8... Nd7 {[%clk 0:02:38.8]} 9. O-O {[%clk 0:02:42.8]} 9... O-O {[%clk
0:02:37.9]} 10. Qe2 {[%clk 0:02:42.9]} 10... b6 {[%clk 0:02:32.2]} 11. Nd6
{[%clk 0:01:39.1]} 11... g6 {[%clk 0:02:08.8]} 12. Nxc8 {[%clk 0:01:38.5]} 12...
Qxc8 {[%clk 0:02:07.9]} 13. Rad1 {[%clk 0:01:38.4]} 13... c5 {[%clk 0:02:06.5]}
14. c3 {[%clk 0:01:38.5]} 14... cxd4 {[%clk 0:02:06.4]} 15. Be4 {[%clk
0:01:32.5]} 15... Ra7 {[%clk 0:01:58.5]} 16. Nxd4 {[%clk 0:01:32.4]} 16... Nc5
{[%clk 0:01:55.8]} 17. Bb1 {[%clk 0:01:32]} 17... Rd7 {[%clk 0:01:49]} 18. Nc2
{[%clk 0:01:19.8]} 18... Rfd8 {[%clk 0:01:43.6]} 19. Ne3 {[%clk 0:01:19.9]}
19... b5 {[%clk 0:01:42.1]} 20. Rxd7 {[%clk 0:01:17.1]} 20... Qxd7 {[%clk
0:01:33.9]} 21. Rd1 {[%clk 0:01:17.4]} 21... Qc7 {[%clk 0:01:34]} 22. g3 {[%clk
0:01:11.8]} 22... h5 {[%clk 0:01:31.4]} 23. Ng2 {[%clk 0:00:36]} 23... Na4
{[%clk 0:01:03.9]} 24. Rxd8+ {[%clk 0:00:31]} 24... Qxd8 {[%clk 0:01:03.4]} 25.
Nf4 {[%clk 0:00:31]} 25... Qd6 {[%clk 0:00:52]} 26. Be4 {[%clk 0:00:25.2]} 26...
Nc5 {[%clk 0:00:40.4]} 27. Nd3 {[%clk 0:00:20.2]} 27... Nxe4 {[%clk 0:00:33.5]}
28. Qxe4 {[%clk 0:00:21.1]} 28... Kg7 {[%clk 0:00:34]} 29. h4 {[%clk 0:00:19.4]}
29... a5 {[%clk 0:00:31.7]} 30. Kf1 {[%clk 0:00:16.9]} 30... Kg8 {[%clk
0:00:28.3]} 31. Ke2 {[%clk 0:00:16.7]} 31... Bg7 {[%clk 0:00:27.7]} 32. Qb7
{[%clk 0:00:13.9]} 32... b4 {[%clk 0:00:26.6]} 33. cxb4 {[%clk 0:00:13.7]} 33...
axb4 {[%clk 0:00:27]} 34. Qxb4 {[%clk 0:00:13.7]} 34... Qd5 {[%clk 0:00:26.7]}
35. Qa4 {[%clk 0:00:09.8]} 35... e5 {[%clk 0:00:25.1]} 36. b3 {[%clk 0:00:08.3]}
36... Kh7 {[%clk 0:00:23]} 37. Qc4 {[%clk 0:00:07.7]} 37... Qa8 {[%clk
0:00:23.3]} 38. a4 {[%clk 0:00:07]} 38... Qh1 {[%clk 0:00:20]} 39. Qxf7 {[%clk
0:00:05.6]} 39... e4 {[%clk 0:00:20.2]} 40. Ne1 {[%clk 0:00:03.8]} 40... e3
{[%clk 0:00:20]} 41. fxe3 {[%clk 0:00:03.1]} 41... Qh2+ {[%clk 0:00:20.4]} 42.
Qf2 {[%clk 0:00:03.7]} 42... Qh3 {[%clk 0:00:20.8]} 43. Nf3 {[%clk 0:00:03.9]}
43... Qg4 {[%clk 0:00:18.6]} 44. Kf1 {[%clk 0:00:04.1]} 44... Qb4 {[%clk
0:00:17.7]} 45. Kg2 {[%clk 0:00:04]} 45... Qxb3 {[%clk 0:00:17.6]} 46. Ng5+
{[%clk 0:00:04.7]} 46... Kh6 {[%clk 0:00:18.2]} 47. Qf4 {[%clk 0:00:04.9]} 47...
Qc2+ {[%clk 0:00:16.1]} 48. Kf3 {[%clk 0:00:04.8]} 48... Qd1+ {[%clk 0:00:15.9]}
49. Kf2 {[%clk 0:00:05.2]} 49... Qc2+ {[%clk 0:00:15.6]} 50. Kg1 {[%clk
0:00:05.3]} 50... Qd1+ {[%clk 0:00:15.6]} 51. Kg2 {[%clk 0:00:05.8]} 51... Qc2+
{[%clk 0:00:13.9]} 52. Kh3 {[%clk 0:00:05.4]} 52... Qc8+ {[%clk 0:00:13.8]} 53.
g4 {[%clk 0:00:05.9]} 53... hxg4+ {[%clk 0:00:13.7]} 54. Qxg4 {[%clk 0:00:06.8]}
54... Qc1 {[%clk 0:00:13.4]} 55. Qf4 {[%clk 0:00:04.9]} 55... Qh1+ {[%clk
0:00:13.3]} 56. Kg3 {[%clk 0:00:05.4]} 56... Qg1+ {[%clk 0:00:13]} 57. Kf3
{[%clk 0:00:05.9]} 57... Qf1+ {[%clk 0:00:12.9]} 58. Kg3 {[%clk 0:00:03.2]}
58... Qg1+ {[%clk 0:00:11.9]} 59. Kf3 {[%clk 0:00:03.7]} 59... Qf1+ {[%clk
0:00:11]} 60. Ke4 {[%clk 0:00:04.2]} 60... Qg2+ {[%clk 0:00:10.6]} 61. Nf3+
{[%clk 0:00:02.5]} 61... Kh7 {[%clk 0:00:08.6]} 62. Qg5 {[%clk 0:00:02.9]} 62...
Qc2+ {[%clk 0:00:08.5]} 63. Kf4 {[%clk 0:00:03.4]} 63... Qxa4+ {[%clk
0:00:07.9]} 64. Kg3 {[%clk 0:00:03.6]} 64... Qd7 {[%clk 0:00:05.9]} 65. h5
{[%clk 0:00:03.4]} 65... Qd6+ {[%clk 0:00:05.5]} 66. Kh3 {[%clk 0:00:03.5]}
66... Qe6+ {[%clk 0:00:05.4]} 67. Kg2 {[%clk 0:00:03.3]} 67... gxh5 {[%clk
0:00:05]} 68. Qxh5+ {[%clk 0:00:03.5]} 68... Kg8 {[%clk 0:00:05.4]} 69. Qg5
{[%clk 0:00:03.4]} 69... Qc6 {[%clk 0:00:05.2]} 70. Qf4 {[%clk 0:00:03.5]} 70...
Qg6+ {[%clk 0:00:05.2]} 71. Qg3 {[%clk 0:00:03.3]} 71... Qe4 {[%clk 0:00:05.6]}
72. Qf4 {[%clk 0:00:03]} 72... Qc2+ {[%clk 0:00:05.6]} 73. Kg3 {[%clk
0:00:03.3]} 73... Qc5 {[%clk 0:00:05.5]} 74. Ng5 {[%clk 0:00:03.4]} 74... Be5
{[%clk 0:00:05.6]} 75. Kg4 {[%clk 0:00:02.5]} 75... Bxf4 {[%clk 0:00:06]} 76.
exf4 {[%clk 0:00:03.2]} 76... Qc8+ {[%clk 0:00:06.5]} 77. Kh5 {[%clk 0:00:03.3]}
77... Kg7 {[%clk 0:00:06.6]} 78. f5 {[%clk 0:00:03.2]} 78... Qxf5 {[%clk
0:00:06.6]} 79. Kh4 {[%clk 0:00:03.9]} 79... Qf4+ {[%clk 0:00:06.4]} 0-1

[Event "Early-Titled-Tuesday-Blitz-February-13-2024"]
[Site "Chess.com"]
[Date "2024.02.13"]
[Round "5"]
[White "ATM622"]
[Black "isaak2009"]
[Result "0-1"]
[WhiteElo "2460"]
[BlackElo "2687"]
[TimeControl "180+1"]
[EndTime "9:01:48 PST"]
[Termination "isaak2009 won by resignation"]

1. d4 {[%clk 0:03:00.9]} 1... d5 {[%clk 0:02:59.7]} 2. c4 {[%clk 0:03:01.1]}
2... c6 {[%clk 0:02:59.7]} 3. Nf3 {[%clk 0:03:01.1]} 3... Nf6 {[%clk 0:02:59.9]}
4. Nbd2 {[%clk 0:03:01.1]} 4... Bf5 {[%clk 0:02:59]} 5. Nh4 {[%clk 0:03:00.9]}
5... Be4 {[%clk 0:02:44.3]} 6. e3 {[%clk 0:02:59.8]} 6... e6 {[%clk 0:02:42.8]}
7. Be2 {[%clk 0:02:58.8]} 7... Be7 {[%clk 0:02:42.3]} 8. O-O {[%clk 0:02:57.7]}
8... Nbd7 {[%clk 0:02:42.1]} 9. b3 {[%clk 0:02:44.2]} 9... a5 {[%clk 0:02:35]}
10. Bb2 {[%clk 0:02:43.6]} 10... a4 {[%clk 0:02:35.2]} 11. f3 {[%clk 0:02:20.1]}
11... Bg6 {[%clk 0:02:17.3]} 12. f4 {[%clk 0:02:13.5]} 12... Be4 {[%clk
0:02:12.6]} 13. Nhf3 {[%clk 0:02:08.1]} 13... Qa5 {[%clk 0:02:09.9]} 14. Rc1
{[%clk 0:01:55.8]} 14... Ng4 {[%clk 0:02:01]} 15. Nxe4 {[%clk 0:00:43.5]} 15...
dxe4 {[%clk 0:01:59.7]} 16. Bc3 {[%clk 0:00:27.9]} 16... Qd8 {[%clk 0:01:53.1]}
17. Qd2 {[%clk 0:00:26.8]} 17... exf3 {[%clk 0:01:52.8]} 18. Bxf3 {[%clk
0:00:22.2]} 18... Ngf6 {[%clk 0:01:52.6]} 19. e4 {[%clk 0:00:22]} 19... O-O
{[%clk 0:01:43.9]} 20. e5 {[%clk 0:00:20.8]} 20... Ne8 {[%clk 0:01:43.6]} 21.
Be4 {[%clk 0:00:16.2]} 21... axb3 {[%clk 0:01:41.3]} 22. axb3 {[%clk 0:00:15.2]}
22... f5 {[%clk 0:01:35.1]} 23. Bb1 {[%clk 0:00:12.6]} 23... b5 {[%clk
0:01:33.8]} 24. cxb5 {[%clk 0:00:10.8]} 24... cxb5 {[%clk 0:01:32.9]} 25. d5
{[%clk 0:00:09.1]} 25... Bc5+ {[%clk 0:01:24.3]} 26. Bd4 {[%clk 0:00:08.9]}
26... Bxd4+ {[%clk 0:00:35]} 27. Qxd4 {[%clk 0:00:09.8]} 27... Nc7 {[%clk
0:00:35.6]} 28. d6 {[%clk 0:00:05]} 28... Nd5 {[%clk 0:00:34.3]} 29. b4 {[%clk
0:00:04.4]} 29... Ra4 {[%clk 0:00:33.7]} 30. Bd3 {[%clk 0:00:02.5]} 30... Rxb4
{[%clk 0:00:33.8]} 31. Qa7 {[%clk 0:00:02.8]} 31... Qb6+ {[%clk 0:00:34]} 32.
Qxb6 {[%clk 0:00:02.8]} 32... N7xb6 {[%clk 0:00:34.9]} 33. Rc6 {[%clk 0:00:03]}
33... Nxf4 {[%clk 0:00:28]} 34. Bb1 {[%clk 0:00:02.3]} 34... Nd7 {[%clk
0:00:27.8]} 35. Rc7 {[%clk 0:00:02.3]} 35... Nxe5 {[%clk 0:00:28.2]} 36. d7
{[%clk 0:00:02.6]} 36... Nd5 {[%clk 0:00:21.2]} 37. Rb7 {[%clk 0:00:02.2]} 37...
Nf6 {[%clk 0:00:19.1]} 38. Rd1 {[%clk 0:00:02.1]} 38... Nexd7 {[%clk 0:00:19.5]}
39. Ba2 {[%clk 0:00:01.7]} 39... Nc5 {[%clk 0:00:18.8]} 40. Rc7 {[%clk
0:00:01.7]} 40... Nce4 {[%clk 0:00:18.5]} 41. Bxe6+ {[%clk 0:00:01.6]} 41... Kh8
{[%clk 0:00:18.6]} 42. Bxf5 {[%clk 0:00:02]} 42... g6 {[%clk 0:00:19]} 43. Be6
{[%clk 0:00:01.8]} 43... Rb2 {[%clk 0:00:17]} 44. Rf1 {[%clk 0:00:01.7]} 44...
b4 {[%clk 0:00:14.7]} 45. Bd5 {[%clk 0:00:02]} 45... Re2 {[%clk 0:00:09.9]} 46.
Bc4 {[%clk 0:00:02]} 46... Re3 {[%clk 0:00:09.7]} 47. g4 {[%clk 0:00:02.3]}
47... h6 {[%clk 0:00:09.1]} 48. h4 {[%clk 0:00:02.5]} 48... g5 {[%clk
0:00:08.6]} 49. h5 {[%clk 0:00:02.5]} 49... Rd8 {[%clk 0:00:07.7]} 50. Be6
{[%clk 0:00:02.2]} 50... Rg3+ {[%clk 0:00:07.4]} 51. Kh2 {[%clk 0:00:02.2]}
51... Rd2+ {[%clk 0:00:07]} 52. Kh1 {[%clk 0:00:02.7]} 52... Rh3+ {[%clk
0:00:05.1]} 53. Kg1 {[%clk 0:00:03.1]} 53... Rg3+ {[%clk 0:00:05.7]} 54. Kh1
{[%clk 0:00:02.8]} 54... Nf2+ {[%clk 0:00:06.1]} 55. Rxf2 {[%clk 0:00:02.9]}
55... Rxf2 {[%clk 0:00:05.5]} 56. Rc8+ {[%clk 0:00:02.6]} 56... Kg7 {[%clk
0:00:05.7]} 57. Bf5 {[%clk 0:00:02.7]} 57... Rxf5 {[%clk 0:00:05.1]} 58. gxf5
{[%clk 0:00:03.6]} 58... Rh3+ {[%clk 0:00:05.3]} 59. Kg2 {[%clk 0:00:03.8]}
59... Rxh5 {[%clk 0:00:06.2]} 60. Rc7+ {[%clk 0:00:04.4]} 60... Kf8 {[%clk
0:00:06.6]} 61. Rc8+ {[%clk 0:00:04.5]} 61... Ne8 {[%clk 0:00:07.2]} 62. Kf3
{[%clk 0:00:04.2]} 62... Rh4 {[%clk 0:00:07.7]} 63. Ke3 {[%clk 0:00:03.8]} 63...
Rf4 {[%clk 0:00:08.1]} 64. Rc5 {[%clk 0:00:03.8]} 64... Kf7 {[%clk 0:00:06.9]}
65. Rb5 {[%clk 0:00:03.6]} 65... Kf6 {[%clk 0:00:06.9]} 66. Rb6+ {[%clk
0:00:03.9]} 66... Kxf5 {[%clk 0:00:07.4]} 67. Rxh6 {[%clk 0:00:04.1]} 67... Nf6
{[%clk 0:00:08]} 68. Rh8 {[%clk 0:00:04.2]} 68... b3 {[%clk 0:00:08.4]} 69. Rb8
{[%clk 0:00:03.9]} 69... Rh4 {[%clk 0:00:09.1]} 70. Kf2 {[%clk 0:00:03.4]} 70...
Rh3 {[%clk 0:00:09.1]} 71. Kg2 {[%clk 0:00:03.6]} 71... Rc3 {[%clk 0:00:09.7]}
72. Rb4 {[%clk 0:00:03.5]} 72... Rc2+ {[%clk 0:00:09.5]} 73. Kf3 {[%clk
0:00:03.5]} 73... b2 {[%clk 0:00:10.4]} 74. Rb5+ {[%clk 0:00:03.3]} 74... Kg6
{[%clk 0:00:10.1]} 75. Rb6 {[%clk 0:00:03.7]} 75... g4+ {[%clk 0:00:10.2]} 76.
Kg3 {[%clk 0:00:03.8]} 76... Rc3+ {[%clk 0:00:07.6]} 77. Kg2 {[%clk 0:00:03.6]}
77... Rc2+ {[%clk 0:00:07.4]} 78. Kg3 {[%clk 0:00:04]} 78... Kg7 {[%clk
0:00:07.9]} 79. Rb5 {[%clk 0:00:03.5]} 79... Ne4+ {[%clk 0:00:07.9]} 80. Kxg4
{[%clk 0:00:03.7]} 80... Nc3 {[%clk 0:00:08.3]} 81. Rb7+ {[%clk 0:00:03.8]}
81... Kf6 {[%clk 0:00:08.5]} 82. Rxb2 {[%clk 0:00:02.7]} 82... Rxb2 {[%clk
0:00:08.4]} 0-1

[Event "Early-Titled-Tuesday-Blitz-February-13-2024"]
[Site "Chess.com"]
[Date "2024.02.13"]
[Round "5"]
[White "ejam94"]
[Black "IMRosen"]
[Result "1/2-1/2"]
[WhiteElo "2515"]
[BlackElo "2673"]
[TimeControl "180+1"]
[EndTime "9:02:19 PST"]
[Termination "Game drawn by repetition"]

1. e4 {[%clk 0:03:00.9]} 1... c5 {[%clk 0:02:56.6]} 2. Nf3 {[%clk 0:03:00]} 2...
Nc6 {[%clk 0:02:55.2]} 3. d4 {[%clk 0:02:55.7]} 3... cxd4 {[%clk 0:02:54.6]} 4.
Nxd4 {[%clk 0:02:56.6]} 4... g6 {[%clk 0:02:54.6]} 5. c4 {[%clk 0:02:53.9]} 5...
Nf6 {[%clk 0:02:54.6]} 6. Nc3 {[%clk 0:02:53.7]} 6... Nxd4 {[%clk 0:02:53.8]} 7.
Qxd4 {[%clk 0:02:53.8]} 7... d6 {[%clk 0:02:54.6]} 8. Be2 {[%clk 0:02:53.5]}
8... Bg7 {[%clk 0:02:55.3]} 9. O-O {[%clk 0:02:53.4]} 9... O-O {[%clk 0:02:55]}
10. Qd3 {[%clk 0:02:50.9]} 10... Be6 {[%clk 0:02:50]} 11. Be3 {[%clk 0:02:47.5]}
11... a5 {[%clk 0:02:49.8]} 12. Bd4 {[%clk 0:02:45.8]} 12... a4 {[%clk
0:02:48.6]} 13. f4 {[%clk 0:02:41.1]} 13... Qa5 {[%clk 0:02:43.2]} 14. Rad1
{[%clk 0:02:39.2]} 14... Rfc8 {[%clk 0:02:41.7]} 15. b3 {[%clk 0:02:39.5]} 15...
axb3 {[%clk 0:02:34.4]} 16. axb3 {[%clk 0:02:39.9]} 16... Qb4 {[%clk 0:02:35.1]}
17. f5 {[%clk 0:02:27.6]} 17... Bd7 {[%clk 0:02:10.3]} 18. Bxf6 {[%clk
0:02:19.1]} 18... Bxf6 {[%clk 0:02:02]} 19. Nd5 {[%clk 0:02:19.3]} 19... Qc5+
{[%clk 0:02:02.4]} 20. Kh1 {[%clk 0:02:19.5]} 20... Bc6 {[%clk 0:00:39.4]} 21.
fxg6 {[%clk 0:02:11]} 21... hxg6 {[%clk 0:00:39.1]} 22. Nxf6+ {[%clk 0:02:00]}
22... exf6 {[%clk 0:00:39.5]} 23. Rxf6 {[%clk 0:01:59.8]} 23... Qe5 {[%clk
0:00:37.2]} 24. Qxd6 {[%clk 0:01:39.8]} 24... Qxd6 {[%clk 0:00:19.7]} 25. Rfxd6
{[%clk 0:01:40]} 25... Bxe4 {[%clk 0:00:20.4]} 26. R6d4 {[%clk 0:01:29.3]} 26...
Bc6 {[%clk 0:00:15.7]} 27. h3 {[%clk 0:01:26.7]} 27... Re8 {[%clk 0:00:13.7]}
28. R1d2 {[%clk 0:01:24.6]} 28... Re3 {[%clk 0:00:10.8]} 29. R4d3 {[%clk
0:01:23.2]} 29... Rae8 {[%clk 0:00:10.9]} 30. Bf1 {[%clk 0:01:15.7]} 30... Re1
{[%clk 0:00:09.5]} 31. Kg1 {[%clk 0:01:15.7]} 31... Rb1 {[%clk 0:00:09.5]} 32.
Rd1 {[%clk 0:01:13.4]} 32... Rb2 {[%clk 0:00:09.9]} 33. R1d2 {[%clk 0:01:12.3]}
33... Rb1 {[%clk 0:00:10.2]} 34. Kf2 {[%clk 0:01:04.9]} 34... Re6 {[%clk
0:00:07.7]} 35. Be2 {[%clk 0:01:01.4]} 35... Rf6+ {[%clk 0:00:07.8]} 36. Bf3
{[%clk 0:01:01.6]} 36... Bxf3 {[%clk 0:00:08.5]} 37. gxf3 {[%clk 0:01:01.7]}
37... Rb6 {[%clk 0:00:09.2]} 38. Rc2 {[%clk 0:00:50.1]} 38... R1xb3 {[%clk
0:00:07.9]} 39. Rxb3 {[%clk 0:00:49.7]} 39... Rxb3 {[%clk 0:00:08.8]} 40. c5
{[%clk 0:00:50.2]} 40... Rb5 {[%clk 0:00:03.8]} 41. c6 {[%clk 0:00:50.1]} 41...
bxc6 {[%clk 0:00:04.7]} 42. Rxc6 {[%clk 0:00:50.2]} 42... Rg5 {[%clk 0:00:04.6]}
43. h4 {[%clk 0:00:49.2]} 43... Rh5 {[%clk 0:00:04.3]} 44. Kg3 {[%clk
0:00:49.6]} 44... Rf5 {[%clk 0:00:05]} 45. Rb6 {[%clk 0:00:48.7]} 45... Kg7
{[%clk 0:00:05.6]} 46. Ra6 {[%clk 0:00:48.9]} 46... Rc5 {[%clk 0:00:06]} 47. Rb6
{[%clk 0:00:48.8]} 47... Ra5 {[%clk 0:00:06.6]} 48. Rc6 {[%clk 0:00:49]} 48...
Ra1 {[%clk 0:00:07.2]} 49. Rb6 {[%clk 0:00:49.1]} 49... Rg1+ {[%clk 0:00:07.8]}
50. Kf2 {[%clk 0:00:49.2]} 50... Rc1 {[%clk 0:00:08.2]} 51. Kg3 {[%clk
0:00:49.4]} 51... Rc2 {[%clk 0:00:08.6]} 52. Rd6 {[%clk 0:00:49.4]} 52... Rb2
{[%clk 0:00:09.1]} 53. Rc6 {[%clk 0:00:49.7]} 53... Kh6 {[%clk 0:00:09.4]} 54.
Rc8 {[%clk 0:00:47]} 54... Rb7 {[%clk 0:00:09]} 55. Rh8+ {[%clk 0:00:46.7]}
55... Kg7 {[%clk 0:00:09.6]} 56. Rc8 {[%clk 0:00:47.3]} 56... Rb6 {[%clk
0:00:10.1]} 57. Rc5 {[%clk 0:00:46.7]} 57... Kf6 {[%clk 0:00:10.2]} 58. Ra5
{[%clk 0:00:46.2]} 58... Re6 {[%clk 0:00:10.5]} 59. Rb5 {[%clk 0:00:46]} 59...
Ra6 {[%clk 0:00:09.1]} 60. Rc5 {[%clk 0:00:46]} 60... Kg7 {[%clk 0:00:07.9]} 61.
Rb5 {[%clk 0:00:44.4]} 61... Ra4 {[%clk 0:00:07.9]} 62. Rb8 {[%clk 0:00:43.9]}
62... Rc4 {[%clk 0:00:06.7]} 63. Rd8 {[%clk 0:00:42.8]} 63... Rc1 {[%clk
0:00:06.7]} 64. Rb8 {[%clk 0:00:42.5]} 64... Rg1+ {[%clk 0:00:06.7]} 65. Kf2
{[%clk 0:00:42.4]} 65... Rc1 {[%clk 0:00:07]} 66. Kg3 {[%clk 0:00:41]} 66... Rc4
{[%clk 0:00:07]} 67. Ra8 {[%clk 0:00:40.6]} 67... Rc3 {[%clk 0:00:07.1]} 68. Rb8
{[%clk 0:00:40.2]} 68... Rc5 {[%clk 0:00:06.4]} 69. Ra8 {[%clk 0:00:39.4]} 69...
Kf6 {[%clk 0:00:07.1]} 70. Ra4 {[%clk 0:00:36.1]} 70... Re5 {[%clk 0:00:04.4]}
71. Ra7 {[%clk 0:00:34.4]} 71... Kg7 {[%clk 0:00:04.8]} 72. Rb7 {[%clk
0:00:34.4]} 72... Rf5 {[%clk 0:00:05.4]} 73. Ra7 {[%clk 0:00:34.4]} 73... Kh6
{[%clk 0:00:06]} 74. Ra8 {[%clk 0:00:34.6]} 74... Rf6 {[%clk 0:00:05.8]} 75.
Rh8+ {[%clk 0:00:34.5]} 75... Kg7 {[%clk 0:00:06.3]} 76. Rb8 {[%clk 0:00:35.2]}
76... Re6 {[%clk 0:00:06.8]} 77. Rb7 {[%clk 0:00:35.2]} 77... Re1 {[%clk
0:00:06.9]} 78. Rb8 {[%clk 0:00:35.5]} 78... Rg1+ {[%clk 0:00:07.2]} 79. Kf2
{[%clk 0:00:35.5]} 79... Ra1 {[%clk 0:00:07.8]} 80. Kg3 {[%clk 0:00:35.8]} 80...
Ra2 {[%clk 0:00:08.5]} 81. Rb7 {[%clk 0:00:36]} 81... Ra5 {[%clk 0:00:07.2]} 82.
Rc7 {[%clk 0:00:35.7]} 82... Rf5 {[%clk 0:00:05]} 83. Rb7 {[%clk 0:00:36.2]}
83... Kh6 {[%clk 0:00:05.5]} 84. Rb8 {[%clk 0:00:36.3]} 84... f6 {[%clk
0:00:04.8]} 85. Rh8+ {[%clk 0:00:35.9]} 85... Kg7 {[%clk 0:00:05.4]} 86. Rb8
{[%clk 0:00:36]} 86... Re5 {[%clk 0:00:05.7]} 87. Rb7+ {[%clk 0:00:35.3]} 87...
Kh6 {[%clk 0:00:06.2]} 88. Rb8 {[%clk 0:00:36]} 88... f5 {[%clk 0:00:03.9]} 89.
Rh8+ {[%clk 0:00:35.3]} 89... Kg7 {[%clk 0:00:04.5]} 90. Ra8 {[%clk 0:00:35.9]}
90... Rd5 {[%clk 0:00:05.1]} 91. Kf4 {[%clk 0:00:34.8]} 91... Rd1 {[%clk
0:00:03.9]} 92. Ra7+ {[%clk 0:00:34.9]} 92... Kh6 {[%clk 0:00:03.9]} 93. Ra8
{[%clk 0:00:35.5]} 93... Rh1 {[%clk 0:00:04]} 94. Rh8+ {[%clk 0:00:35.4]} 94...
Kg7 {[%clk 0:00:04.5]} 95. Ra8 {[%clk 0:00:33.4]} 95... Rxh4+ {[%clk 0:00:04.8]}
96. Kg5 {[%clk 0:00:32.8]} 96... Rh5+ {[%clk 0:00:05.1]} 97. Kf4 {[%clk
0:00:33.3]} 97... Kh6 {[%clk 0:00:05.7]} 98. Rh8+ {[%clk 0:00:32.8]} 98... Kg7
{[%clk 0:00:05.9]} 99. Rxh5 {[%clk 0:00:32.8]} 99... gxh5 {[%clk 0:00:06.4]}
100. Kg5 {[%clk 0:00:26.4]} 100... h4 {[%clk 0:00:04.2]} 101. Kxh4 {[%clk
0:00:26.3]} 101... Kf6 {[%clk 0:00:03.6]} 102. Kh5 {[%clk 0:00:26.8]} 102... f4
{[%clk 0:00:01.9]} 103. Kg4 {[%clk 0:00:26.8]} 103... Kf7 {[%clk 0:00:02.7]}
104. Kf5 {[%clk 0:00:26.7]} 104... Kg7 {[%clk 0:00:03]} 105. Ke6 {[%clk
0:00:26.5]} 105... Kf8 {[%clk 0:00:02.9]} 106. Ke5 {[%clk 0:00:26.4]} 106... Kf7
{[%clk 0:00:03.3]} 107. Kf5 {[%clk 0:00:27.1]} 107... Kg7 {[%clk 0:00:03.7]}
108. Kg5 {[%clk 0:00:27.2]} 108... Kf7 {[%clk 0:00:04.1]} 109. Kf5 {[%clk
0:00:27.7]} 1/2-1/2